Cogmind - Beta 13 @@@ ROGUE MODE // 2024.04.30 @ 16:40:01 Player: WarMechanic Result: Destroyed by G-34 Mercenary with Small Laser Performance ------------- Evolutions (1) 500 Regions Visited (2) 400 Robots Destroyed (45) 225 Value Destroyed (1077) 1077 Prototype IDs (0) 0 Alien Tech Used (0) 0 Bonus (10) 10 TOTAL SCORE: 2212 Bonus ------- High Alert Combat Kills 10 Cogmind --------- Core Integrity 0/400 Matter 118/300 Energy 99/100 System Corruption 0% Temperature Cool (6) Movement Core (50) Location -9/Materials Parts ------- > --- POWER (1) -------- (None) > --- PROPULSION (2) --- (None) > --- UTILITY (4) ------ (None) > --- WEAPON (2) ------- (None) > --- INVENTORY (5) ---- Deuterium Engine Light Armor Plating System Shield System Shield Datajack Peak State ------------ > --- POWER ------------ Deuterium Engine > --- PROPULSION ------- Wheel > --- UTILITY ---------- High-capacity Storage Unit Seismic Detector Medium Armor Plating System Shield > --- WEAPON ----------- Light EM Pulse Cannon Mining Laser > --- INVENTORY -------- Deuterium Engine Deuterium Engine Deuterium Engine Wheel Wheel Wheel Sensor Array Sensor Array ECM Suite Light Armor Plating Light Armor Plating System Shield System Shield System Shield Assault Rifle Assault Rifle Assault Rifle Grenade Launcher Datajack Mining Laser [Rating: 17] Favorites ----------- Power Light Ion Engine Engine Light Ion Engine Propulsion Wheel Wheel Wheel Utility High-capacity Storage Unit Device Seismic Detector Storage High-capacity Storage Unit Hackware System Shield Protection Medium Armor Plating Weapon Assault Rifle Energy Cannon Light EM Pulse Cannon Ballistic Gun Assault Rifle Launcher Grenade Launcher Special Weapon Mining Laser Build | -11 -10 -9 ------- Run | Yrd Mat Mat Slots Evolved 2 | . . 2 Power . | . . . Propulsion . | . . . Utility 2 | . . 2 Weapon . | . . . Parts Attached 53 | 7 13 33 Power 6 | . 3 3 Engine 6 | . 3 3 Core . | . . . Reactor . | . . . Propulsion 8 | 3 1 4 Treads . | . . . Leg . | . . . Wheel 8 | 3 1 4 Hover . | . . . Flight . | . . . Utility 13 | 2 1 10 Device 6 | 1 . 5 Storage 2 | 1 1 . Processor . | . . . Hackware 1 | . . 1 Protection 4 | . . 4 Artifact . | . . . Weapon 26 | 2 8 16 Energy Gun . | . . . Energy Cannon 3 | . . 3 Ballistic Gun 12 | 2 4 6 Ballistic Cannon . | . . . Launcher 4 | . 2 2 Special Weapon 7 | . 2 5 Impact Weapon . | . . . Slashing Weapon . | . . . Piercing Weapon . | . . . Special Melee Weapon . | . . . Unidentified Prototypes . | . . . Parts Lost 21 | . 2 19 Power 4 | . 1 3 Propulsion 6 | . 1 5 Utility 4 | . . 4 Weapon 7 | . . 7 Highest Loss Streak 12 | . 2 12 To Critical Strikes . | . . . Average Slot Usage (%) 89 | . 92 84 Engine 10 | . 13 7 Wheel 22 | . 27 15 Device 13 | . 7 19 Storage 12 | . 14 10 Hackware 2 | . . 5 Protection 2 | . . 5 Energy Cannon 2 | . . 5 Ballistic Gun 6 | . 6 7 Launcher 6 | . 11 . Special Weapon 8 | . 9 6 Naked Turns 7 | . . 7 Heaviest Build 64 | 10 49 64 Greatest Support 26 | 26 20 20 Greatest Overweight (x) 16 | . 2 16 Average Overweight (x) 1 | . 1 3 Largest Inventory Capacity 20 | 8 20 20 Average Capacity 17 | 7 17 19 Most Carried 20 | 8 17 20 Average Carried 12 | 5 11 15 Final Capacity 20 | 8 20 5 Final Carried 17 | 8 17 5 Class Distribution -------------------- 89% | Mutant 10% | Scavenger-Mutant Dominant Class ---------------- Mutant | -10/Materials Mutant | -9/Materials Resources | -11 -10 -9 ----------- Run | Yrd Mat Mat Matter Collected 1056 | 199 583 274 Remotely . | . . . Salvage Created 1406 | 197 663 546 Parts 84 | 20 32 32 Haulers Intercepted . | . . . Recyclers Shooed 1 | . . 1 Parts Field Recycled . | . . . Retrieved Matter . | . . . Parts Self-Destructed . | . . . Prevented . | . . . Kills | -11 -10 -9 ------- Run | Yrd Mat Mat Combat Hostiles Destroyed 28 | . 17 11 Guns 17 | . 13 4 Cannons 1 | . . 1 AOE 10 | . 4 6 Classes Destroyed 9 | 3 3 3 Worker 3 | 2 1 . Tunneler 5 | 5 . . Recycler 5 | 1 3 1 Operator 3 | . 2 1 Watcher 1 | . . 1 Swarmer 9 | . 9 . Grunt 17 | . 8 9 Brawler 1 | . . 1 Sentry 1 | . . 1 Best Kill Streak 12 | 3 12 4 Combat Bots Only 11 | . 11 3 Max Kills in Single Turn 4 | 1 2 4 Gunslinging 1 | . 1 . Exploded 3 | . 1 3 Melee . | . . . Uniques/NPCs Destroyed . | . . . Combat | -11 -10 -9 -------- Run | Yrd Mat Mat Hostile Shots Fired 204 | . 51 153 Missed 57 | . 10 47 Damage Taken 1983 | . 437 1546 Core 465 | . 63 402 Absorbed by Shields . | . . . Regen/Repaired (Parts) 52 | . 52 . Core Remaining (%) 87 | 100 74 . Volleys Fired 142 | 18 74 50 Largest 2 | 2 2 2 Hottest 100 | 40 100 100 Shots Fired 204 | 36 101 67 Gun 127 | 36 57 34 Cannon 10 | . . 10 Launcher 24 | . 14 10 Special 43 | . 30 13 Kinetic 127 | 36 57 34 Thermal 43 | . 30 13 Explosive 24 | . 14 10 Electromagnetic 10 | . . 10 Robot Hit Streak 13 | 10 11 13 Robot Miss Streak 4 | 2 2 4 Penetration Max . | . . . Secondary Targets 5 | . 3 2 Max Gunslinging Chain 1 | . 1 1 Shots Hit Robots 106 | 28 47 31 Core Hits 74 | 9 34 31 Critical Kills . | . . . Critical Parts Destroyed . | . . . Critical Strikes . | . . . Melee Attacks . | . . . Impact . | . . . Slashing . | . . . Piercing . | . . . Sneak Attacks . | . . . Combat Hostiles . | . . . Follow-up Attacks . | . . . Damage Inflicted 2568 | 349 974 1245 Guns 1164 | 349 543 272 Cannons 163 | . . 163 Explosions 1218 | . 431 787 Melee . | . . . Ramming 23 | . . 23 Kinetic 1164 | 349 543 272 Thermal . | . . . Explosive 846 | . 349 497 Electromagnetic 535 | . 82 453 Impact . | . . . Slashing . | . . . Piercing . | . . . Highest Corruption . | . . . Average Corruption . | . . . Corruption Purged . | . . . Corruption Blocked . | . . . Overload Shots . | . . . Overflow Damage 29 | . . 29 Projectiles 6 | . . 6 Explosions 23 | . . 23 Melee . | . . . Knockbacks . | . . . Impact . | . . . Kinetic . | . . . Secondary . | . . . Self-Inflicted Damage 206 | . 43 163 Shots 13 | . 4 9 Rammed 2 | . . 2 Targets Rammed 2 | . . 2 Kicked . | . . . Crushed . | . . . Highest Temperature 200 | . 200 96 Average Temperature 35 | . 47 20 Received Heat Transfer 933 | . 144 789 Siege Activations . | . . . Robots Corrupted . | . . . Combat Hostiles . | . . . Parts Fried . | . . . Impact Corruptions . | . . . Robots Melted . | . . . Combat Hostiles . | . . . Parts Melted . | . . . Heat Transferred . | . . . Parts Sabotaged . | . . . Parts Stolen . | . . . Parts Stripped . | . . . Power Chain Reactions 1 | . . 1 Alert | -11 -10 -9 ------- Run | Yrd Mat Mat Peak Influence 492 | 40 492 394 Initial 174 | . 26 174 Average 223 | 17 237 255 Maximum Alert Level 2 | . 2 1 Low Security (%) 47 | 100 52 27 Level 1 44 | . 32 72 Level 2 7 | . 14 . Level 3 . | . . . Level 4 . | . . . Level 5 . | . . . High Security . | . . . Max Security . | . . . Squads Dispatched 5 | . 5 . Investigation 4 | . 4 . Extermination . | . . . Reinforcement 1 | . 1 . Assault . | . . . Garrison . | . . . Intercept . | . . . Searches Triggered . | . . . Construction Impeded . | . . . Haulers Reinforced . | . . . Active Scanning Responses . | . . . Cargo Convoy Interrupts . | . . . Stealth | -11 -10 -9 --------- Run | Yrd Mat Mat Distress Signals 3 | . 3 . Communications Jammed . | . . . Distress Signals . | . . . Times Spotted 52 | . 31 21 Peak Tracking Total 8 | . 8 5 Tactical Retreats 5 | . 1 4 Traps | -11 -10 -9 ------- Run | Yrd Mat Mat Traps Triggered 2 | . 2 . Indirectly . | . . . Trap Hack Attempts . | . . . Triggered . | . . . Disarmed . | . . . Reprogrammed . | . . . Reused . | . . . Traps Extracted . | . . . Installed . | . . . Triggered . | . . . Machines | -11 -10 -9 ---------- Run | Yrd Mat Mat Machines Disabled 17 | . 8 9 Max in Single Turn 2 | . 2 2 Machines Repaired . | . . . Machines Dismantled . | . . . Machines Sabotaged . | . . . Overloaded Fab Kills . | . . . Hacking | -11 -10 -9 --------- Run | Yrd Mat Mat Machines Accessed 14 | . 9 5 Terminals 13 | . 8 5 Fabricators . | . . . Repair Stations 1 | . 1 . Recycling Units . | . . . Scanalyzers . | . . . Garrison Access . | . . . Total Hacks 37 | . 23 14 Successful 8 | . 5 3 Failed 27 | . 17 10 Catastrophic 8 | . 5 3 Database Lockouts 2 | . 1 1 Manual 38 | . 23 15 Terminals 33 | . 19 14 Fabricators . | . . . Repair Stations 4 | . 4 . Recycling Units . | . . . Scanalyzers . | . . . Garrison Access . | . . . Terminal Hacks 6 | . 3 3 Part Schematic 2 | . 1 1 Terminal Index 2 | . 1 1 Fabricator Index 1 | . . 1 Security Status 1 | . 1 . Fabricator Hacks . | . . . Repair Station Hacks 2 | . 2 . Scan Component 1 | . 1 . Repair 1 | . 1 . Recycling Unit Hacks . | . . . Scanalyzer . | . . . Garrison Access Hacks . | . . . Unauthorized Hacks . | . . . Terminals . | . . . Fabricators . | . . . Repair Stations . | . . . Recycling Units . | . . . Scanalyzers . | . . . Garrison Access . | . . . Data Cores Recovered . | . . . Used . | . . . Hacking Detections 14 | . 9 5 Full Trace Events 1 | . 1 . Feedback Events . | . . . Feedback Blocked . | . . . Robot Schematics Acquired . | . . . Robots Built . | . . . Authchips . | . . . Time . | . . . Total Robot Build Rating . | . . . Part Schematics Acquired 2 | . 1 1 Parts Built . | . . . Authchips . | . . . Time . | . . . Total Part Build Rating . | . . . Parts Repaired 1 | . 1 . Time 26 | . 26 . Parts Recycled . | . . . Recycled Matter . | . . . Retrieved Matter . | . . . Retrieved Components . | . . . Parts Scanalyzed . | . . . Part Schematics Acquired . | . . . Parts Damaged . | . . . Bothacking | -11 -10 -9 ------------ Run | Yrd Mat Mat Used RIF Installer . | . . . Robots Hacked . | . . . Non-combat . | . . . Combat . | . . . Robot Hacks Applied . | . . . Relay Couplers Released . | . . . Fabnet Peak Effective % . | . . . Robots Rewired . | . . . Allies Hacked . | . . . Hacks Repelled . | . . . Allies | -11 -10 -9 -------- Run | Yrd Mat Mat Total Allies . | . . . Largest Group . | . . . Highest-Rated Group . | . . . Highest-Rated Ally . | . . . Total Orders . | . . . Ally Attacks . | . . . Total Damage . | . . . Kills . | . . . Allies Corrupted . | . . . Allies Melted . | . . . Intel | -11 -10 -9 ------- Run | Yrd Mat Mat Robot Analysis Total . | . . . Derelict Logs Recovered . | . . . Drone Launches . | . . . Drone Recoveries . | . . . Exploration | -11 -10 -9 ------------- Run | Yrd Mat Mat Turns Passed 2215 | 210 1136 869 Spaces Moved 1361 | 157 738 466 Core 38 | 20 . 18 Treads . | . . . Legs . | . . . Wheels 1323 | 137 738 448 Hover . | . . . Flight . | . . . Fastest Speed 50 | 50 80 50 Average Speed 108 | 83 101 128 Slowest Speed 850 | 90 110 850 Overloaded Moves . | . . . Propulsion Burnouts . | . . . Robots Hopped . | . . . Cave-ins Triggered . | . . . Exploration Rate (%) 39 | 6 89 23 Regions Visited 2 Branch Regions . Pre-discovered Areas . | . . . Known Exits Taken . | . . . Unknown Exits Taken 2 | 1 1 . Scrap Searched . | . . . Spaces Dug 68 | . 52 16 Terrain Destroyed 161 | . 100 61 Melee . | . . . Projectile 20 | . 11 9 AOE 141 | . 89 52 Terrain Rammed . | . . . Walls Destroyed . | . . . Machines Disabled . | . . . Actions | -11 -10 -9 --------- Run | Yrd Mat Mat Total 1796 | 201 959 636 Wait 176 | . 112 64 Move 1359 | 156 737 466 Hop . | . . . Pick Up 47 | 17 17 13 Fast Attach . | . . . Attach 25 | 7 4 14 Detach 1 | . 1 . Swap 28 | . 9 19 Drop 16 | 3 5 8 Fire 142 | 18 74 50 Melee . | . . . Ram 2 | . . 2 Kick . | . . . Crush . | . . . Escape Stasis . | . . . Rewire . | . . . Trap . | . . . Miscellaneous . | . . . Route ------- -11/Scrapyard -10/Materials (discovered 4 exits: *Mat x3 / [*Min]) -9/Materials History --------- Turn | Location | Event 13 | -11/Scrapyard | Discovered new exit (range 14) 211 | -11/Scrapyard | Entered Materials 317 | -10/Materials | Build established: Mutant 589 | -10/Materials | Discovered new exit (range 3) 670 | -10/Materials | Discovered new exit (range 16) 893 | -10/Materials | Discovered new exit (range 16) 896 | -10/Materials | Destroyed 11 combat bots 960 | -10/Materials | Central database locked down 1023 | -10/Materials | Discovered new exit (range 15) 1229 | -10/Materials | Repaired Assault Rifle 1347 | -10/Materials | Entered another Materials area 1347 | -9/Materials | Evolved 2 slots: Utility x2 1492 | -9/Materials | Central database locked down 1773 | -9/Materials | Lost 3 parts (1u2w) 1892 | -9/Materials | Lost 3 parts (1p1n1w) 2168 | -9/Materials | Core integrity fell below 50% 2198 | -9/Materials | Core integrity fell below 20% 2209 | -9/Materials | Released all parts (1) 2216 | -9/Materials | Destroyed by G-34 Mercenary with Small Laser Last Messages --------------- 02125_ Wheel destroyed. 02131_ Assault Rifle destroyed. 02142_ Deuterium Engine destroyed. 02146_ System Shield destroyed. 02162_ Sensor Array destroyed. 02165_ Mining Laser destroyed. 02177_ K-01 Serf destroyed. 02180_ Wheel destroyed. 02185_ ECM Suite destroyed. 02185_ Critical hit (Burn: +37). 02193_ R-06 Scavenger collects Wheel. 02199_ Grenade Launcher destroyed. 02204_ Neutrino Reactor explodes. 02204_ G-34 Mercenary destroyed. 02204_ G-47 Trooper destroyed. 02204_ R-06 Scavenger destroyed. 02204_ Chain reaction triggered in Corrupted Lgt. Ion Engine. 02207_ Deuterium Engine destroyed. 02209_ Released Hcp. Storage Unit. Map ----- +----------------------------------------------------+ | # """"""" #????# | | # """"""" #????# | | ?? #????# #########+### | | ???? ??###?# #??# | | ????## ##### ### #### """ """ | | ????# ## """ """ | | ????# =! #?# """ """ | | ????# =% #?# | | ???## = = #?# ! T" | | ???# *%% #?# """ | | ???## == #??# | | ????# =%! #??########## | | ????# !!! ## / # #########???? | | ????# !## # #???? | | ????# ## """ # # !!! #???? | | ????# ## """ # # !! #???? | | ????# ## """ # # !! [#???? | | ????# ## # + #???? | | ????# ######## #########???? | | ????# #? # #???????????? | | ????# g# """ # #???????????? | | ????# # """ # #???????????? | | ????# + """ # #########???? | | ????# # + +???? | | ????# # #### ###???? | | ????#@ ########??# #?????? | | ????# #?????????# #?????? | | ????# #?????????# #?????? | | ????# ########### #?????? | | ????# a #?????? | | ????# ### %## #####????? | | ????# #?# # #????? | | ????# ###[[ #*"" #????? | | ????# ###[[ # " #????? | | ????# # ####### "" #????? | | ????# ####????## #????? | | ????# ##???????# #????? | | ????# #????????##### ##????? | | ????# #????????????###?????? | | ????# #????????????????????? | | ????# #????????????????????? | | ????# #????????????????????? | | ????# ############?????????? | | ????# # # ##????????? | | ????# # # #????????? | | ????# # ###??????? | | ????# # ! ! #??????? | | ????# #[ ##?????? | | ????# # = # #?????? | | ????# # """ #?????? | +----------------------------------------------------+ Best States ------------- Heat Dissipation 28 Energy Generation 14 Energy Capacity 275 Matter Stores 300 Matter Capacity 300 Sight Range 16 Robot Scan Range 14 Terrain Scan Density 10 ECM Strength 1 Armor Coverage 225 Evasion (%) 50 Defensive Hacking 10 Item Schematics ----------------- Datajack | -10/Materials | Hacked Mni. Grenade Launcher | -9/Materials | Hacked Robot Schematics ------------------ None Fabricated ------------ Nothing Alien Tech Used ----------------- None Achievements -------------- None Challenges ------------ None Game ------ Seed MomentumResetBiocell Manual? 0 Play Time 00:47:30 Cumulative 3.3 hours Start 2024.04.30 @ 15:51:45 End 2024.04.30 @ 16:40:01 Sessions 1 Manual Loads 0 Difficulty Rogue Special Mode None Game No. 5 Rogue 5 Adventurer 0 Explorer 0 Win Type - Total 0 Types 0/0/0/0/0/0/0/0/0 Lore% 0 Gallery% 5 Achievement% 5 Wizard Run 0 Options --------- Layout 2 ASCII 1 Keyboard 1 Movement Arrows Keybinds 1 Fullscreen 2 Font 24/Smallcaps Map View 50x44 Zoom Use 0% Tactical HUD 1 Map Filters NONE Filters NONE Steam 1 RUN: b80f7d87-2e91-42fd-83ba-4458d9f37b33